[Event "*** Titled Tuesday Blitz"]
[Site "Chess.com"]
[Date "2020.05.05"]
[Round "3"]
[White "RATNAKARAN"]
[Black "ozates"]
[Result "1-0"]
[WhiteElo "2587"]
[BlackElo "2368"]
[TimeControl "180+1"]
[EndTime "10:27:45 PDT"]
[Termination "RATNAKARAN won by resignation"]

1. e4 {[%clk 0:03:00.9]} 1... c5 {[%clk 0:02:59.6]} 2. Nf3 {[%clk 0:03:00.6]}
2... Nc6 {[%clk 0:02:58]} 3. Bb5 {[%clk 0:03:00.3]} 3... g6 {[%clk 0:02:57.6]}
4. O-O {[%clk 0:02:59.9]} 4... Bg7 {[%clk 0:02:57.3]} 5. Re1 {[%clk 0:03:00.3]}
5... e5 {[%clk 0:02:55.6]} 6. c3 {[%clk 0:03:00.3]} 6... Nge7 {[%clk 0:02:54.3]}
7. d4 {[%clk 0:03:00.6]} 7... exd4 {[%clk 0:02:54.2]} 8. cxd4 {[%clk 0:03:01]}
8... Nxd4 {[%clk 0:02:48.4]} 9. Nxd4 {[%clk 0:03:00.9]} 9... cxd4 {[%clk
0:02:49.3]} 10. Bf4 {[%clk 0:02:58.1]} 10... O-O {[%clk 0:02:47.4]} 11. Bd6
{[%clk 0:02:58]} 11... Re8 {[%clk 0:02:46.7]} 12. Bc4 {[%clk 0:02:51.7]} 12...
Nc6 {[%clk 0:02:43]} 13. Nd2 {[%clk 0:02:43.6]} 13... Ne5 {[%clk 0:02:21.6]} 14.
Bd5 {[%clk 0:02:43.1]} 14... Qh4 {[%clk 0:02:14.5]} 15. Rc1 {[%clk 0:02:33.8]}
15... Nd3 {[%clk 0:02:10.9]} 16. Qf3 {[%clk 0:02:31]} 16... Qf6 {[%clk
0:01:55.9]} 17. Qxd3 {[%clk 0:02:28.7]} 17... Qxd6 {[%clk 0:01:55.5]} 18. Nc4
{[%clk 0:02:27.5]} 18... Qf4 {[%clk 0:01:48.7]} 19. g3 {[%clk 0:02:27]} 19...
Qf6 {[%clk 0:01:32.3]} 20. e5 {[%clk 0:02:26.3]} 20... Qa6 {[%clk 0:01:24.7]}
21. Qxd4 {[%clk 0:02:22.2]} 21... d6 {[%clk 0:01:24.9]} 22. Nxd6 {[%clk
0:02:09.3]} 22... Rf8 {[%clk 0:00:55.8]} 23. Rxc8 {[%clk 0:01:55.7]} 23... Raxc8
{[%clk 0:00:55]} 24. Bxb7 {[%clk 0:01:52.9]} 24... Qa5 {[%clk 0:00:52.4]} 25. b4
{[%clk 0:01:52.4]} 25... Bxe5 {[%clk 0:00:16.5]} 26. bxa5 {[%clk 0:01:44.7]}
26... Bxd4 {[%clk 0:00:15.1]} 27. Nxc8 {[%clk 0:01:43.7]} 27... Rd8 {[%clk
0:00:13.8]} 28. Ne7+ {[%clk 0:01:39.9]} 28... Kf8 {[%clk 0:00:13.2]} 29. Nc6
{[%clk 0:01:39.8]} 1-0

[Event "*** Titled Tuesday Blitz"]
[Site "Chess.com"]
[Date "2020.05.05"]
[Round "3"]
[White "mjray79"]
[Black "annacramling"]
[Result "1-0"]
[WhiteElo "2257"]
[BlackElo "1920"]
[TimeControl "180+1"]
[EndTime "10:27:47 PDT"]
[Termination "mjray79 won on time"]

1. d4 {[%clk 0:03:00.9]} 1... Nf6 {[%clk 0:02:54.7]} 2. c4 {[%clk 0:03:01]} 2...
e6 {[%clk 0:02:53.7]} 3. g3 {[%clk 0:03:00.7]} 3... d5 {[%clk 0:02:43.4]} 4. Bg2
{[%clk 0:03:01.6]} 4... Bb4+ {[%clk 0:02:42.9]} 5. Bd2 {[%clk 0:03:00.3]} 5...
Bd6 {[%clk 0:02:42.6]} 6. Nf3 {[%clk 0:02:58.9]} 6... c6 {[%clk 0:02:42.5]} 7.
Qc2 {[%clk 0:02:58.3]} 7... Nbd7 {[%clk 0:02:41.9]} 8. O-O {[%clk 0:02:57.3]}
8... O-O {[%clk 0:02:35.2]} 9. Bg5 {[%clk 0:02:56.6]} 9... Re8 {[%clk
0:02:20.2]} 10. Nc3 {[%clk 0:02:53.2]} 10... dxc4 {[%clk 0:02:04.7]} 11. e4
{[%clk 0:02:49.8]} 11... e5 {[%clk 0:02:04.6]} 12. Rad1 {[%clk 0:02:45]} 12...
Qc7 {[%clk 0:01:41.9]} 13. Rfe1 {[%clk 0:02:31.5]} 13... h6 {[%clk 0:01:30.5]}
14. dxe5 {[%clk 0:02:28.5]} 14... Bxe5 {[%clk 0:01:22.1]} 15. Nxe5 {[%clk
0:02:23.6]} 15... hxg5 {[%clk 0:01:19]} 16. Nxc4 {[%clk 0:02:20.6]} 16... Ne5
{[%clk 0:01:00.2]} 17. Nd6 {[%clk 0:02:19.1]} 17... Rd8 {[%clk 0:00:47]} 18. Nf5
{[%clk 0:02:12.6]} 18... Rxd1 {[%clk 0:00:41.3]} 19. Rxd1 {[%clk 0:02:11.9]}
19... Bxf5 {[%clk 0:00:39.8]} 20. exf5 {[%clk 0:02:12.8]} 20... Rd8 {[%clk
0:00:38.8]} 21. Nd5 {[%clk 0:01:54.4]} 21... Nxd5 {[%clk 0:00:31.1]} 22. Bxd5
{[%clk 0:01:53.8]} 22... Qb6 {[%clk 0:00:15.8]} 23. Qe2 {[%clk 0:01:36.6]} 23...
cxd5 {[%clk 0:00:05.4]} 24. Qxe5 {[%clk 0:01:36]} 24... Qxb2 {[%clk 0:00:05.5]}
25. Qxb2 {[%clk 0:01:35.1]} 1-0

[Event "*** Titled Tuesday Blitz"]
[Site "Chess.com"]
[Date "2020.05.05"]
[Round "3"]
[White "Sanan_Sjugirov"]
[Black "Jeffinho023"]
[Result "1-0"]
[WhiteElo "2852"]
[BlackElo "2458"]
[TimeControl "180+1"]
[EndTime "10:27:53 PDT"]
[Termination "Sanan_Sjugirov won on time"]

1. e4 {[%clk 0:03:00.9]} 1... e5 {[%clk 0:02:59.9]} 2. Nf3 {[%clk 0:03:00.8]}
2... Nf6 {[%clk 0:03:00.1]} 3. d4 {[%clk 0:02:59.5]} 3... Nxe4 {[%clk
0:02:59.8]} 4. Bd3 {[%clk 0:02:59.3]} 4... d5 {[%clk 0:02:59.5]} 5. Nxe5 {[%clk
0:02:59.3]} 5... Bd6 {[%clk 0:02:59.4]} 6. Nc3 {[%clk 0:02:57.8]} 6... Nf6
{[%clk 0:02:55.1]} 7. O-O {[%clk 0:02:57]} 7... h6 {[%clk 0:02:54.3]} 8. Qf3
{[%clk 0:02:51.6]} 8... c6 {[%clk 0:02:49.5]} 9. Ne2 {[%clk 0:02:46.8]} 9... O-O
{[%clk 0:02:31.2]} 10. Ng3 {[%clk 0:02:46.5]} 10... Re8 {[%clk 0:02:25.3]} 11.
Re1 {[%clk 0:02:43.5]} 11... c5 {[%clk 0:02:21.8]} 12. Nh5 {[%clk 0:02:11.8]}
12... c4 {[%clk 0:01:34.9]} 13. Bxh6 {[%clk 0:02:01.2]} 13... Bxe5 {[%clk
0:01:06.1]} 14. Bxg7 {[%clk 0:01:54.8]} 14... Nxh5 {[%clk 0:00:26.3]} 15. Bxe5
{[%clk 0:01:42.5]} 15... Qg5 {[%clk 0:00:23.4]} 16. Bh7+ {[%clk 0:01:29.1]}
16... Kxh7 {[%clk 0:00:16.8]} 17. Qxf7+ {[%clk 0:01:29]} 17... Ng7 {[%clk
0:00:17]} 18. Bxg7 {[%clk 0:01:29]} 18... Rxe1+ {[%clk 0:00:16.5]} 19. Rxe1
{[%clk 0:01:29.4]} 19... Qg6 {[%clk 0:00:06]} 20. Qf8 {[%clk 0:01:25.5]} 20...
Qxg7 {[%clk 0:00:05]} 21. Re7 {[%clk 0:01:25.5]} 21... Qxe7 {[%clk 0:00:04.7]}
22. Qxe7+ {[%clk 0:01:26.4]} 1-0

[Event "*** Titled Tuesday Blitz"]
[Site "Chess.com"]
[Date "2020.05.05"]
[Round "3"]
[White "politeplayer"]
[Black "kakakz"]
[Result "0-1"]
[WhiteElo "2199"]
[BlackElo "2435"]
[TimeControl "180+1"]
[EndTime "10:27:55 PDT"]
[Termination "kakakz won by checkmate"]

1. e4 {[%clk 0:03:00.9]} 1... c5 {[%clk 0:02:59.5]} 2. Nf3 {[%clk 0:03:00.6]}
2... d6 {[%clk 0:02:59.4]} 3. d4 {[%clk 0:03:01]} 3... cxd4 {[%clk 0:03:00.3]}
4. Nxd4 {[%clk 0:03:01.5]} 4... Nf6 {[%clk 0:03:00.8]} 5. Nc3 {[%clk 0:03:02]}
5... g6 {[%clk 0:03:01.7]} 6. Be3 {[%clk 0:03:00.8]} 6... Bg7 {[%clk 0:03:02.2]}
7. f3 {[%clk 0:03:01.1]} 7... Nc6 {[%clk 0:03:02.2]} 8. Qd2 {[%clk 0:03:01.4]}
8... O-O {[%clk 0:03:02.6]} 9. Bc4 {[%clk 0:03:01.6]} 9... Bd7 {[%clk
0:03:02.6]} 10. O-O-O {[%clk 0:02:59.2]} 10... Rc8 {[%clk 0:03:02.7]} 11. Bb3
{[%clk 0:02:59.2]} 11... Ne5 {[%clk 0:03:02.7]} 12. h4 {[%clk 0:02:57.1]} 12...
h5 {[%clk 0:03:02.4]} 13. Bh6 {[%clk 0:02:56.2]} 13... Bxh6 {[%clk 0:02:55.6]}
14. Qxh6 {[%clk 0:02:55]} 14... Rxc3 {[%clk 0:02:56.5]} 15. bxc3 {[%clk
0:02:54.7]} 15... Qc7 {[%clk 0:02:56.2]} 16. Kb1 {[%clk 0:02:53.9]} 16... a5
{[%clk 0:02:41.2]} 17. a4 {[%clk 0:02:46.5]} 17... b5 {[%clk 0:01:49.1]} 18.
axb5 {[%clk 0:02:38.2]} 18... a4 {[%clk 0:01:42.7]} 19. Bxa4 {[%clk 0:02:09]}
19... Ra8 {[%clk 0:01:41.1]} 20. b6 {[%clk 0:01:40.5]} 20... Qxb6+ {[%clk
0:01:05.7]} 21. Bb3 {[%clk 0:01:39.9]} 21... Qa5 {[%clk 0:01:05.7]} 22. Kc1
{[%clk 0:01:35.5]} 22... Qxc3 {[%clk 0:01:05.3]} 23. Bxf7+ {[%clk 0:01:28.5]}
23... Kxf7 {[%clk 0:01:02]} 24. Nb3 {[%clk 0:01:27.6]} 24... Ra2 {[%clk
0:00:34.1]} 25. Nd4 {[%clk 0:01:07.8]} 25... Ra1# {[%clk 0:00:32]} 0-1

[Event "*** Titled Tuesday Blitz"]
[Site "Chess.com"]
[Date "2020.05.05"]
[Round "3"]
[White "2346PL"]
[Black "Karina_Ivanova"]
[Result "1-0"]
[WhiteElo "2361"]
[BlackElo "2158"]
[TimeControl "180+1"]
[EndTime "10:27:55 PDT"]
[Termination "2346PL won by resignation"]

1. d4 {[%clk 0:03:00.9]} 1... Nf6 {[%clk 0:02:59.7]} 2. Bg5 {[%clk 0:03:00.6]}
2... e6 {[%clk 0:02:56.5]} 3. Nf3 {[%clk 0:03:00.2]} 3... c5 {[%clk 0:02:55.3]}
4. c3 {[%clk 0:02:57]} 4... h6 {[%clk 0:02:54.7]} 5. Bh4 {[%clk 0:02:56.8]} 5...
b6 {[%clk 0:02:53.7]} 6. Nbd2 {[%clk 0:02:56]} 6... Bb7 {[%clk 0:02:53.3]} 7. e3
{[%clk 0:02:54.3]} 7... d6 {[%clk 0:02:52.6]} 8. Be2 {[%clk 0:02:53.3]} 8...
Nbd7 {[%clk 0:02:52.2]} 9. O-O {[%clk 0:02:53.5]} 9... Be7 {[%clk 0:02:49.9]}
10. b4 {[%clk 0:02:52.1]} 10... O-O {[%clk 0:02:48.2]} 11. a4 {[%clk 0:02:51.7]}
11... cxb4 {[%clk 0:02:44.8]} 12. cxb4 {[%clk 0:02:51.5]} 12... d5 {[%clk
0:02:44.9]} 13. Qb3 {[%clk 0:02:49.3]} 13... Rc8 {[%clk 0:02:41.9]} 14. Rac1
{[%clk 0:02:48.1]} 14... Rxc1 {[%clk 0:02:39.7]} 15. Rxc1 {[%clk 0:02:47.7]}
15... Qb8 {[%clk 0:02:40.1]} 16. Bg3 {[%clk 0:02:47.6]} 16... Bd6 {[%clk
0:02:40]} 17. Bxd6 {[%clk 0:02:43.6]} 17... Qxd6 {[%clk 0:02:39.3]} 18. h3
{[%clk 0:02:43.2]} 18... Rc8 {[%clk 0:02:37.2]} 19. Rxc8+ {[%clk 0:02:37]} 19...
Bxc8 {[%clk 0:02:38.1]} 20. Qc3 {[%clk 0:02:32.6]} 20... Bb7 {[%clk 0:02:37.5]}
21. Ne5 {[%clk 0:02:31.2]} 21... Qb8 {[%clk 0:02:31.4]} 22. Bb5 {[%clk
0:02:19.3]} 22... Nxe5 {[%clk 0:02:27]} 23. dxe5 {[%clk 0:02:18.9]} 23... Ne8
{[%clk 0:02:26.6]} 24. Bxe8 {[%clk 0:02:08.1]} 24... Qxe8 {[%clk 0:02:25.9]} 25.
Qc7 {[%clk 0:01:58.5]} 25... Qc8 {[%clk 0:02:24.8]} 26. Qxc8+ {[%clk 0:01:57]}
26... Bxc8 {[%clk 0:02:24.6]} 27. Nb3 {[%clk 0:01:53.9]} 27... Kf8 {[%clk
0:02:22.2]} 28. Nd4 {[%clk 0:01:51.7]} 28... Bd7 {[%clk 0:02:20.1]} 29. b5
{[%clk 0:01:47.2]} 29... f6 {[%clk 0:02:18.3]} 30. f4 {[%clk 0:01:45.9]} 30...
g5 {[%clk 0:02:16.6]} 31. exf6 {[%clk 0:01:22.8]} 31... gxf4 {[%clk 0:02:16]}
32. exf4 {[%clk 0:01:22.7]} 32... Kf7 {[%clk 0:02:14.9]} 33. Nc6 {[%clk
0:01:18.8]} 33... Kxf6 {[%clk 0:02:14.7]} 34. Nxa7 {[%clk 0:01:17.1]} 34... Kf5
{[%clk 0:02:08.9]} 35. g3 {[%clk 0:01:07.4]} 35... d4 {[%clk 0:01:59.9]} 36. a5
{[%clk 0:01:05.2]} 36... d3 {[%clk 0:01:47.1]} 37. Kf2 {[%clk 0:01:05]} 37...
Bxb5 {[%clk 0:01:41.9]} 38. Nxb5 {[%clk 0:01:01.7]} 38... bxa5 {[%clk
0:01:41.8]} 39. Ke3 {[%clk 0:01:01.4]} 39... e5 {[%clk 0:01:41.8]} 40. g4+
{[%clk 0:01:00.9]} 40... Kf6 {[%clk 0:01:40]} 41. f5 {[%clk 0:00:51.8]} 41... e4
{[%clk 0:01:38.2]} 42. Nd6 {[%clk 0:00:50.2]} 42... a4 {[%clk 0:01:33.5]} 43.
Nxe4+ {[%clk 0:00:49.4]} 43... Ke5 {[%clk 0:01:33.4]} 44. Nd2 {[%clk 0:00:47.7]}
44... a3 {[%clk 0:01:32.6]} 45. Nc4+ {[%clk 0:00:47.1]} 1-0

[Event "*** Titled Tuesday Blitz"]
[Site "Chess.com"]
[Date "2020.05.05"]
[Round "3"]
[White "mamey78"]
[Black "starplatinum2030"]
[Result "1-0"]
[WhiteElo "2334"]
[BlackElo "2126"]
[TimeControl "180+1"]
[EndTime "10:28:02 PDT"]
[Termination "mamey78 won by resignation"]

1. e4 {[%clk 0:03:00.9]} 1... c5 {[%clk 0:02:56.5]} 2. Nf3 {[%clk 0:03:00.3]}
2... e6 {[%clk 0:02:56.8]} 3. c3 {[%clk 0:02:59.9]} 3... d5 {[%clk 0:02:55.7]}
4. exd5 {[%clk 0:02:59.4]} 4... Qxd5 {[%clk 0:02:56.6]} 5. d4 {[%clk 0:02:59.4]}
5... Nf6 {[%clk 0:02:55.6]} 6. Be3 {[%clk 0:02:59]} 6... Nc6 {[%clk 0:02:54.9]}
7. dxc5 {[%clk 0:02:54.6]} 7... Qxd1+ {[%clk 0:02:52.4]} 8. Kxd1 {[%clk
0:02:55.5]} 8... Be7 {[%clk 0:02:51.4]} 9. Nbd2 {[%clk 0:02:52]} 9... Nd5 {[%clk
0:02:51.1]} 10. Nb3 {[%clk 0:02:36.2]} 10... Nxe3+ {[%clk 0:02:46.7]} 11. fxe3
{[%clk 0:02:35.2]} 11... b6 {[%clk 0:02:47.2]} 12. Bb5 {[%clk 0:02:29.3]} 12...
Bd7 {[%clk 0:02:46.2]} 13. cxb6 {[%clk 0:02:23.1]} 13... axb6 {[%clk 0:02:45.3]}
14. Nbd4 {[%clk 0:02:16.9]} 14... Rc8 {[%clk 0:02:19.3]} 15. Nxc6 {[%clk
0:02:12.4]} 15... Bxc6 {[%clk 0:02:20.2]} 16. Bxc6+ {[%clk 0:02:08.6]} 16...
Rxc6 {[%clk 0:02:21.1]} 17. Ke2 {[%clk 0:02:08.8]} 17... b5 {[%clk 0:02:15.4]}
18. Rhd1 {[%clk 0:02:04.7]} 18... Ra6 {[%clk 0:02:14.3]} 19. Nd4 {[%clk
0:01:50.2]} 19... b4 {[%clk 0:02:05.7]} 20. cxb4 {[%clk 0:01:33.4]} 20... Bxb4
{[%clk 0:02:06.6]} 21. a3 {[%clk 0:01:33.4]} 21... Bc5 {[%clk 0:02:03.1]} 22. b4
{[%clk 0:01:32]} 22... Bxd4 {[%clk 0:02:02.6]} 23. Rxd4 {[%clk 0:01:26.1]} 23...
Ke7 {[%clk 0:02:03.5]} 24. a4 {[%clk 0:01:23.4]} 24... Rha8 {[%clk 0:01:59.2]}
25. a5 {[%clk 0:01:22.4]} 25... Rb8 {[%clk 0:01:59.3]} 26. Kd3 {[%clk
0:01:20.9]} 26... e5 {[%clk 0:01:58.4]} 27. Rc4 {[%clk 0:01:16.6]} 27... Kd6
{[%clk 0:01:51.9]} 28. Kc3 {[%clk 0:01:14.2]} 28... Rb5 {[%clk 0:01:48.4]} 29.
Kb3 {[%clk 0:01:06.2]} 29... f5 {[%clk 0:01:31.4]} 30. Rd1+ {[%clk 0:01:04.3]}
30... Ke6 {[%clk 0:01:30.8]} 31. Ka4 {[%clk 0:01:03.6]} 31... Rd5 {[%clk
0:01:26.8]} 32. Rxd5 {[%clk 0:00:59.7]} 32... Kxd5 {[%clk 0:01:27.7]} 33. Rc3
{[%clk 0:00:54.7]} 33... Ra8 {[%clk 0:01:28.6]} 34. b5 {[%clk 0:00:53.8]} 34...
f4 {[%clk 0:01:26]} 35. exf4 {[%clk 0:00:52.4]} 35... exf4 {[%clk 0:01:26.9]}
36. b6 {[%clk 0:00:52.4]} 36... g5 {[%clk 0:01:26]} 37. b7 {[%clk 0:00:52]}
37... Rb8 {[%clk 0:01:26.4]} 38. a6 {[%clk 0:00:52.2]} 38... g4 {[%clk
0:01:27.3]} 39. a7 {[%clk 0:00:51.1]} 39... Rxb7 {[%clk 0:01:27.4]} 40. a8=Q
{[%clk 0:00:50.7]} 40... f3 {[%clk 0:01:28.3]} 1-0

[Event "*** Titled Tuesday Blitz"]
[Site "Chess.com"]
[Date "2020.05.05"]
[Round "3"]
[White "Gyapiking"]
[Black "LivajaM"]
[Result "1-0"]
[WhiteElo "2461"]
[BlackElo "2266"]
[TimeControl "180+1"]
[EndTime "10:28:06 PDT"]
[Termination "Gyapiking won by resignation"]

1. c4 {[%clk 0:03:00.9]} 1... e5 {[%clk 0:02:57]} 2. Nc3 {[%clk 0:02:59.3]} 2...
Nc6 {[%clk 0:02:57]} 3. Nf3 {[%clk 0:02:59.3]} 3... Bc5 {[%clk 0:02:56.9]} 4. e3
{[%clk 0:02:58.4]} 4... d6 {[%clk 0:02:56.8]} 5. d4 {[%clk 0:02:58.4]} 5... Bb4
{[%clk 0:02:56.7]} 6. dxe5 {[%clk 0:02:54.7]} 6... dxe5 {[%clk 0:02:54.6]} 7.
Qxd8+ {[%clk 0:02:53.8]} 7... Kxd8 {[%clk 0:02:55]} 8. Bd2 {[%clk 0:02:53.4]}
8... Be6 {[%clk 0:02:50.9]} 9. O-O-O {[%clk 0:02:52.3]} 9... Bxc3 {[%clk
0:02:47.2]} 10. Bxc3+ {[%clk 0:02:51.9]} 10... Ke7 {[%clk 0:02:47.5]} 11. Nxe5
{[%clk 0:02:50.9]} 11... f6 {[%clk 0:02:38.2]} 12. Nxc6+ {[%clk 0:02:49.5]}
12... bxc6 {[%clk 0:02:39.1]} 13. Be2 {[%clk 0:02:42.8]} 13... Nh6 {[%clk
0:02:37.3]} 14. Rhg1 {[%clk 0:02:40.5]} 14... Nf7 {[%clk 0:02:34.3]} 15. g4
{[%clk 0:02:39.6]} 15... Ne5 {[%clk 0:02:33.5]} 16. g5 {[%clk 0:02:31.5]} 16...
Rhg8 {[%clk 0:02:20.3]} 17. b3 {[%clk 0:02:22.3]} 17... c5 {[%clk 0:02:14.8]}
18. f4 {[%clk 0:02:17.8]} 18... Nd7 {[%clk 0:02:11.8]} 19. Bf3 {[%clk
0:02:02.4]} 19... Rad8 {[%clk 0:02:11.3]} 20. Ba5 {[%clk 0:01:57.6]} 20... Nb6
{[%clk 0:02:10.8]} 21. h4 {[%clk 0:01:55.4]} 21... Rd6 {[%clk 0:01:59.1]} 22. h5
{[%clk 0:01:52.3]} 22... Rgd8 {[%clk 0:01:56.3]} 23. Rxd6 {[%clk 0:01:45.7]}
23... Rxd6 {[%clk 0:01:54]} 24. Rd1 {[%clk 0:01:43.7]} 24... fxg5 {[%clk
0:01:46.3]} 25. fxg5 {[%clk 0:01:42.6]} 25... Bf5 {[%clk 0:01:44.6]} 26. Rxd6
{[%clk 0:01:33.8]} 26... cxd6 {[%clk 0:01:44]} 27. Bc3 {[%clk 0:01:30.2]} 27...
g6 {[%clk 0:01:42.5]} 28. h6 {[%clk 0:01:29.5]} 28... Nd7 {[%clk 0:01:35.2]} 29.
Kd2 {[%clk 0:01:26.1]} 29... Ne5 {[%clk 0:01:34.2]} 30. Bxe5 {[%clk 0:01:25.7]}
30... dxe5 {[%clk 0:01:34.4]} 31. Bd5 {[%clk 0:01:25.7]} 31... Bd7 {[%clk
0:01:26]} 32. Kc3 {[%clk 0:01:22.5]} 32... a5 {[%clk 0:01:24.1]} 33. a3 {[%clk
0:01:21.9]} 33... Be8 {[%clk 0:01:20.7]} 34. b4 {[%clk 0:01:21.7]} 34... axb4+
{[%clk 0:01:20.2]} 35. axb4 {[%clk 0:01:21.3]} 35... cxb4+ {[%clk 0:01:20.7]}
36. Kxb4 {[%clk 0:01:21]} 36... Kd6 {[%clk 0:01:21.2]} 37. Bg8 {[%clk
0:01:18.5]} 37... e4 {[%clk 0:01:21.1]} 38. c5+ {[%clk 0:01:18]} 38... Ke5
{[%clk 0:01:20.7]} 39. Bxh7 {[%clk 0:01:13.4]} 39... Bf7 {[%clk 0:01:20.7]} 40.
Kb5 {[%clk 0:01:11.5]} 40... Kf5 {[%clk 0:01:20.7]} 41. c6 {[%clk 0:01:11.5]}
41... Kxg5 {[%clk 0:01:20.7]} 42. c7 {[%clk 0:01:09.6]} 42... Be6 {[%clk
0:01:20.5]} 43. Bg8 {[%clk 0:01:09.7]} 43... Bd7+ {[%clk 0:01:20.1]} 44. Kc5
{[%clk 0:01:06.6]} 44... Kxh6 {[%clk 0:01:20]} 45. Kd6 {[%clk 0:01:05.9]} 45...
Bc8 {[%clk 0:01:18]} 46. Be6 {[%clk 0:01:05.3]} 46... Ba6 {[%clk 0:01:16.4]} 47.
Kc5 {[%clk 0:01:05]} 47... Kg5 {[%clk 0:01:15.2]} 48. Kb6 {[%clk 0:01:04.9]}
48... Kf6 {[%clk 0:01:11.8]} 49. Kxa6 {[%clk 0:01:04.5]} 49... Kxe6 {[%clk
0:01:12.3]} 50. c8=Q+ {[%clk 0:01:03.6]} 1-0

[Event "*** Titled Tuesday Blitz"]
[Site "Chess.com"]
[Date "2020.05.05"]
[Round "3"]
[White "TheBigBoss04"]
[Black "Sweafty"]
[Result "1-0"]
[WhiteElo "2724"]
[BlackElo "2511"]
[TimeControl "180+1"]
[EndTime "10:28:08 PDT"]
[Termination "TheBigBoss04 won by resignation"]

1. d4 {[%clk 0:03:00.9]} 1... d6 {[%clk 0:02:59.8]} 2. Bg5 {[%clk 0:03:00.5]}
2... Nd7 {[%clk 0:02:59.5]} 3. e3 {[%clk 0:03:00]} 3... Ngf6 {[%clk 0:02:59.5]}
4. Nf3 {[%clk 0:03:00.1]} 4... e5 {[%clk 0:02:58.8]} 5. c4 {[%clk 0:02:58.1]}
5... Be7 {[%clk 0:02:58.5]} 6. Nc3 {[%clk 0:02:58.5]} 6... O-O {[%clk
0:02:58.2]} 7. Qc2 {[%clk 0:02:59.1]} 7... c6 {[%clk 0:02:58.2]} 8. Be2 {[%clk
0:02:58]} 8... Qc7 {[%clk 0:02:54.7]} 9. O-O {[%clk 0:02:58.1]} 9... Re8 {[%clk
0:02:54]} 10. Rfd1 {[%clk 0:02:55.2]} 10... Bf8 {[%clk 0:02:44.9]} 11. h3 {[%clk
0:02:52.7]} 11... b6 {[%clk 0:02:42.2]} 12. b4 {[%clk 0:02:51.8]} 12... Bb7
{[%clk 0:02:10.2]} 13. Rac1 {[%clk 0:02:43.9]} 13... a6 {[%clk 0:02:08.7]} 14.
a4 {[%clk 0:02:41.2]} 14... exd4 {[%clk 0:01:53.4]} 15. exd4 {[%clk 0:02:36.1]}
15... c5 {[%clk 0:01:49.3]} 16. dxc5 {[%clk 0:02:29]} 16... dxc5 {[%clk
0:01:42.6]} 17. b5 {[%clk 0:02:27.9]} 17... axb5 {[%clk 0:01:28.3]} 18. axb5
{[%clk 0:02:08.3]} 18... Ne4 {[%clk 0:01:20.7]} 19. Nd5 {[%clk 0:01:47.6]} 19...
Bxd5 {[%clk 0:01:19.2]} 20. Rxd5 {[%clk 0:01:47.4]} 20... Nxg5 {[%clk
0:01:13.7]} 21. Nxg5 {[%clk 0:01:44.4]} 21... g6 {[%clk 0:00:57.5]} 22. Bf3
{[%clk 0:01:42.7]} 22... Nf6 {[%clk 0:00:44]} 23. Rdd1 {[%clk 0:01:31.6]} 23...
Rad8 {[%clk 0:00:39.8]} 24. Re1 {[%clk 0:01:28.6]} 24... Bh6 {[%clk 0:00:38.7]}
25. h4 {[%clk 0:01:23.6]} 25... Qf4 {[%clk 0:00:36.6]} 26. g3 {[%clk 0:01:22.9]}
26... Qd4 {[%clk 0:00:27.2]} 27. Kg2 {[%clk 0:01:23.1]} 27... Bxg5 {[%clk
0:00:23.2]} 28. hxg5 {[%clk 0:01:22.6]} 28... Nd7 {[%clk 0:00:16.8]} 29. Rxe8+
{[%clk 0:01:20.9]} 29... Rxe8 {[%clk 0:00:16.8]} 30. Rd1 {[%clk 0:01:21.5]} 1-0

[Event "*** Titled Tuesday Blitz"]
[Site "Chess.com"]
[Date "2020.05.05"]
[Round "3"]
[White "Boninknights"]
[Black "Hippotaner"]
[Result "0-1"]
[WhiteElo "2131"]
[BlackElo "2339"]
[TimeControl "180+1"]
[EndTime "10:28:09 PDT"]
[Termination "Hippotaner won by resignation"]

1. d4 {[%clk 0:02:59]} 1... Nf6 {[%clk 0:02:58.4]} 2. Nf3 {[%clk 0:02:58.3]}
2... e6 {[%clk 0:02:58.4]} 3. c4 {[%clk 0:02:57.5]} 3... Bb4+ {[%clk 0:02:54.8]}
4. Bd2 {[%clk 0:02:56.8]} 4... a5 {[%clk 0:02:55]} 5. g3 {[%clk 0:02:55.1]} 5...
b6 {[%clk 0:02:50.1]} 6. Bg2 {[%clk 0:02:53.8]} 6... Bb7 {[%clk 0:02:50.7]} 7.
O-O {[%clk 0:02:52.3]} 7... O-O {[%clk 0:02:48.7]} 8. Bg5 {[%clk 0:02:50.8]}
8... Be7 {[%clk 0:02:48.7]} 9. Bxf6 {[%clk 0:02:49.3]} 9... Bxf6 {[%clk
0:02:48.7]} 10. Nc3 {[%clk 0:02:48.6]} 10... d6 {[%clk 0:02:48.3]} 11. e4 {[%clk
0:02:45.7]} 11... Nd7 {[%clk 0:02:48.2]} 12. h4 {[%clk 0:02:40.6]} 12... e5
{[%clk 0:02:48]} 13. d5 {[%clk 0:02:37.8]} 13... Nc5 {[%clk 0:02:48.3]} 14. Na4
{[%clk 0:02:33.2]} 14... Ba6 {[%clk 0:02:43.5]} 15. Nxc5 {[%clk 0:02:30.9]}
15... bxc5 {[%clk 0:02:43.8]} 16. Rc1 {[%clk 0:02:24.9]} 16... Qb8 {[%clk
0:02:41.2]} 17. b3 {[%clk 0:02:21.6]} 17... Qb4 {[%clk 0:02:41.2]} 18. Qd2
{[%clk 0:02:16.9]} 18... Qxd2 {[%clk 0:02:31.1]} 19. Nxd2 {[%clk 0:02:14.6]}
19... Rfb8 {[%clk 0:02:32]} 20. Bh3 {[%clk 0:02:06.2]} 20... Bc8 {[%clk
0:02:28.8]} 21. Bxc8 {[%clk 0:02:01.9]} 21... Rxc8 {[%clk 0:02:29.7]} 22. Rb1
{[%clk 0:01:55.9]} 22... Rcb8 {[%clk 0:02:27.3]} 23. Rfc1 {[%clk 0:01:47.7]}
23... g6 {[%clk 0:02:26.9]} 24. Kf1 {[%clk 0:01:44.9]} 24... Bg7 {[%clk
0:02:26.5]} 25. Ke2 {[%clk 0:01:44.1]} 25... f5 {[%clk 0:02:26.8]} 26. f3 {[%clk
0:01:35.5]} 26... a4 {[%clk 0:02:26.9]} 27. bxa4 {[%clk 0:01:32.2]} 27... Rc8
{[%clk 0:02:08.6]} 28. Rb7 {[%clk 0:01:25.3]} 28... Rxa4 {[%clk 0:02:07.4]} 29.
Rc2 {[%clk 0:01:24.4]} 29... Bf6 {[%clk 0:01:57.4]} 30. h5 {[%clk 0:01:18.8]}
30... Kf7 {[%clk 0:01:52.2]} 31. hxg6+ {[%clk 0:01:09.7]} 31... hxg6 {[%clk
0:01:53.1]} 32. exf5 {[%clk 0:01:07.9]} 32... gxf5 {[%clk 0:01:52.8]} 33. g4
{[%clk 0:01:07.2]} 33... fxg4 {[%clk 0:01:45]} 34. fxg4 {[%clk 0:01:05.9]} 34...
Ke7 {[%clk 0:01:42.5]} 35. Ne4 {[%clk 0:01:03.5]} 35... Bh4 {[%clk 0:01:39.6]}
36. Kf3 {[%clk 0:01:00]} 36... Kd7 {[%clk 0:01:39.6]} 37. Kg2 {[%clk 0:00:57.5]}
37... Rf8 {[%clk 0:01:35.8]} 38. Kh3 {[%clk 0:00:52.8]} 38... Bd8 {[%clk
0:01:35.7]} 39. Rcb2 {[%clk 0:00:49.8]} 39... Rxc4 {[%clk 0:01:33.8]} 40. Ng3
{[%clk 0:00:45.7]} 40... Rh8+ {[%clk 0:01:29.2]} 41. Nh5 {[%clk 0:00:43.9]}
41... Rc3+ {[%clk 0:01:24.1]} 42. Kg2 {[%clk 0:00:41.6]} 42... Rg8 {[%clk
0:01:22.7]} 43. a4 {[%clk 0:00:38]} 43... Rxg4+ {[%clk 0:01:22.4]} 0-1